[Event "Late-Titled-Tuesday-Blitz-August-29-2023"]
[Site "Chess.com"]
[Date "2023.08.29"]
[Round "5"]
[White "MarcoRiehle"]
[Black "only_strong_moves"]
[Result "1-0"]
[WhiteElo "2834"]
[BlackElo "2535"]
[TimeControl "180+1"]
[EndTime "14:54:21 PDT"]
[Termination "MarcoRiehle won on time"]

1. e4 {[%clk 0:03:00.9]} 1... e6 {[%clk 0:02:58.9]} 2. c4 {[%clk 0:02:49.8]}
2... d5 {[%clk 0:02:55.7]} 3. cxd5 {[%clk 0:02:50.7]} 3... exd5 {[%clk
0:02:56.2]} 4. Qb3 {[%clk 0:02:48.1]} 4... c6 {[%clk 0:02:19]} 5. e5 {[%clk
0:02:28.5]} 5... Nd7 {[%clk 0:02:11.4]} 6. d4 {[%clk 0:02:28]} 6... Qb6 {[%clk
0:02:07.2]} 7. Qxb6 {[%clk 0:02:20.7]} 7... Nxb6 {[%clk 0:02:08.1]} 8. Bd3
{[%clk 0:02:16.2]} 8... Ne7 {[%clk 0:01:52.3]} 9. Ke2 {[%clk 0:02:09.5]} 9...
Bf5 {[%clk 0:01:50.9]} 10. Be3 {[%clk 0:02:09.4]} 10... Bxd3+ {[%clk 0:01:47.9]}
11. Kxd3 {[%clk 0:02:10.3]} 11... Nf5 {[%clk 0:01:29.4]} 12. Ne2 {[%clk
0:02:04.6]} 12... O-O-O {[%clk 0:01:23.1]} 13. Nd2 {[%clk 0:02:00.7]} 13... Bb4
{[%clk 0:01:18.8]} 14. b3 {[%clk 0:01:49.6]} 14... Rhe8 {[%clk 0:01:10.7]} 15.
g4 {[%clk 0:01:48.4]} 15... Nxe3 {[%clk 0:01:05.7]} 16. fxe3 {[%clk 0:01:47.8]}
16... Bxd2 {[%clk 0:01:04.5]} 17. Kxd2 {[%clk 0:01:47.8]} 17... f6 {[%clk
0:00:56.2]} 18. exf6 {[%clk 0:01:42.6]} 18... gxf6 {[%clk 0:00:57.1]} 19. Rhf1
{[%clk 0:01:42.6]} 19... Re4 {[%clk 0:00:56.6]} 20. h3 {[%clk 0:01:41.2]} 20...
Rde8 {[%clk 0:00:56.2]} 21. Rf3 {[%clk 0:01:41.5]} 21... Nd7 {[%clk 0:00:40.4]}
22. Ng3 {[%clk 0:01:31.2]} 22... R4e6 {[%clk 0:00:40.3]} 23. Raf1 {[%clk
0:01:29.4]} 23... b6 {[%clk 0:00:31.9]} 24. Nh5 {[%clk 0:01:20.7]} 24... Kb7
{[%clk 0:00:31.9]} 25. Ng7 {[%clk 0:01:15.3]} 25... c5 {[%clk 0:00:23.5]} 26.
Nxe8 {[%clk 0:01:12.9]} 26... Rxe8 {[%clk 0:00:24.4]} 27. Rxf6 {[%clk
0:01:11.8]} 27... cxd4 {[%clk 0:00:22.6]} 28. exd4 {[%clk 0:01:07.4]} 28... Nxf6
{[%clk 0:00:15]} 29. Rxf6 {[%clk 0:01:08.3]} 29... Re7 {[%clk 0:00:10.4]} 30.
Rd6 {[%clk 0:01:06.6]} 30... Rf7 {[%clk 0:00:09.2]} 31. Rxd5 {[%clk 0:01:06]}
31... Rf2+ {[%clk 0:00:09.9]} 32. Ke3 {[%clk 0:01:06.2]} 32... Rxa2 {[%clk
0:00:08.1]} 33. Rd7+ {[%clk 0:01:06.3]} 33... Ka6 {[%clk 0:00:07]} 34. Rxh7
{[%clk 0:01:05.8]} 34... Rb2 {[%clk 0:00:06.9]} 35. g5 {[%clk 0:01:04.5]} 35...
Rxb3+ {[%clk 0:00:07.5]} 36. Kf4 {[%clk 0:01:05.1]} 36... Rd3 {[%clk 0:00:05.9]}
37. g6 {[%clk 0:01:04.9]} 37... Rxd4+ {[%clk 0:00:05.6]} 38. Ke5 {[%clk
0:01:04.9]} 38... Rd1 {[%clk 0:00:04.6]} 39. h4 {[%clk 0:01:04.6]} 39... b5
{[%clk 0:00:04.2]} 40. h5 {[%clk 0:01:03.8]} 40... b4 {[%clk 0:00:03.9]} 41. Rh8
{[%clk 0:01:00.5]} 41... Kb7 {[%clk 0:00:02.4]} 42. g7 {[%clk 0:00:59.3]} 42...
Rg1 {[%clk 0:00:02.5]} 43. g8=Q {[%clk 0:00:59.2]} 43... Rxg8 {[%clk 0:00:02.2]}
44. Rxg8 {[%clk 0:01:00.1]} 44... b3 {[%clk 0:00:03]} 45. Rg3 {[%clk 0:01:00.2]}
1-0

[Event "Late-Titled-Tuesday-Blitz-August-29-2023"]
[Site "Chess.com"]
[Date "2023.08.29"]
[Round "5"]
[White "bescmelasti"]
[Black "Sjakkerntobi"]
[Result "0-1"]
[WhiteElo "2615"]
[BlackElo "2462"]
[TimeControl "180+1"]
[EndTime "14:54:23 PDT"]
[Termination "Sjakkerntobi won on time"]

1. e4 {[%clk 0:03:00]} 1... e6 {[%clk 0:03:00.3]} 2. d4 {[%clk 0:02:59.7]} 2...
d5 {[%clk 0:03:01]} 3. Nc3 {[%clk 0:03:00.6]} 3... Bb4 {[%clk 0:03:00.9]} 4. e5
{[%clk 0:03:00.8]} 4... Ne7 {[%clk 0:03:01.1]} 5. a3 {[%clk 0:03:01.7]} 5...
Bxc3+ {[%clk 0:03:01.7]} 6. bxc3 {[%clk 0:03:02.6]} 6... c5 {[%clk 0:03:02.6]}
7. Qg4 {[%clk 0:03:02.2]} 7... cxd4 {[%clk 0:03:03]} 8. Qxg7 {[%clk 0:03:02.2]}
8... Rg8 {[%clk 0:03:03]} 9. Qxh7 {[%clk 0:03:03]} 9... Qc7 {[%clk 0:03:03.5]}
10. Qd3 {[%clk 0:03:03.7]} 10... dxc3 {[%clk 0:02:59.7]} 11. Nf3 {[%clk
0:02:59.8]} 11... Nbc6 {[%clk 0:02:53]} 12. Qxc3 {[%clk 0:02:59.5]} 12... Bd7
{[%clk 0:02:46.3]} 13. h4 {[%clk 0:02:59.4]} 13... O-O-O {[%clk 0:02:45.7]} 14.
Bg5 {[%clk 0:02:56.3]} 14... Rde8 {[%clk 0:02:22.4]} 15. Bd3 {[%clk 0:02:40.1]}
15... Kb8 {[%clk 0:02:17.1]} 16. g3 {[%clk 0:02:27.5]} 16... d4 {[%clk
0:02:16.7]} 17. Qc5 {[%clk 0:02:20.7]} 17... Nd5 {[%clk 0:02:10.7]} 18. O-O
{[%clk 0:02:14.2]} 18... Ka8 {[%clk 0:02:04]} 19. Be4 {[%clk 0:02:01.4]} 19...
Nxe5 {[%clk 0:01:45.5]} 20. Qxd4 {[%clk 0:01:34.6]} 20... Nxf3+ {[%clk
0:01:35.1]} 21. Bxf3 {[%clk 0:01:35.5]} 21... Bc6 {[%clk 0:01:29.8]} 22. c4
{[%clk 0:01:30.3]} 22... Ne7 {[%clk 0:01:29.3]} 23. Bxc6 {[%clk 0:01:07.9]}
23... Nxc6 {[%clk 0:01:28.9]} 24. Qc5 {[%clk 0:01:00.8]} 24... f6 {[%clk
0:01:19.9]} 25. Be3 {[%clk 0:00:29.5]} 25... Rxg3+ {[%clk 0:01:18.4]} 26. fxg3
{[%clk 0:00:28.4]} 26... Qxg3+ {[%clk 0:01:18.8]} 27. Kh1 {[%clk 0:00:29.2]}
27... Rg8 {[%clk 0:01:13.6]} 28. Bg5 {[%clk 0:00:03.8]} 28... Qh3+ {[%clk
0:00:34.6]} 29. Kg1 {[%clk 0:00:04]} 29... Ne5 {[%clk 0:00:20.4]} 0-1

[Event "Late-Titled-Tuesday-Blitz-August-29-2023"]
[Site "Chess.com"]
[Date "2023.08.29"]
[Round "5"]
[White "arenal72"]
[Black "ilushka"]
[Result "0-1"]
[WhiteElo "2515"]
[BlackElo "2384"]
[TimeControl "180+1"]
[EndTime "14:54:26 PDT"]
[Termination "ilushka won by resignation"]

1. e4 {[%clk 0:02:56.4]} 1... c5 {[%clk 0:03:00]} 2. Nf3 {[%clk 0:02:55.9]} 2...
Nc6 {[%clk 0:03:00.3]} 3. d4 {[%clk 0:02:56.1]} 3... cxd4 {[%clk 0:03:01.2]} 4.
Nxd4 {[%clk 0:02:56.3]} 4... g6 {[%clk 0:03:01.4]} 5. Nc3 {[%clk 0:02:54.1]}
5... Bg7 {[%clk 0:03:01.6]} 6. Be3 {[%clk 0:02:52.1]} 6... Nf6 {[%clk
0:03:01.2]} 7. Bc4 {[%clk 0:02:49.8]} 7... O-O {[%clk 0:03:01]} 8. O-O {[%clk
0:02:49.2]} 8... Nxe4 {[%clk 0:03:00]} 9. Nxe4 {[%clk 0:02:46.1]} 9... d5 {[%clk
0:02:59.9]} 10. Bd3 {[%clk 0:02:41.2]} 10... Nxd4 {[%clk 0:02:47.7]} 11. Ng3
{[%clk 0:02:35.2]} 11... Nf5 {[%clk 0:02:36.9]} 12. Nxf5 {[%clk 0:02:34]} 12...
Bxf5 {[%clk 0:02:37.3]} 13. Bxf5 {[%clk 0:02:29.7]} 13... gxf5 {[%clk
0:02:38.2]} 14. c3 {[%clk 0:02:29.4]} 14... e6 {[%clk 0:02:34.4]} 15. Bd4 {[%clk
0:02:24.2]} 15... Qg5 {[%clk 0:02:27.5]} 16. Bxg7 {[%clk 0:02:23.2]} 16... Kxg7
{[%clk 0:02:26.4]} 17. Qd4+ {[%clk 0:02:21.4]} 17... Qf6 {[%clk 0:02:26.2]} 18.
f4 {[%clk 0:02:15.5]} 18... Qxd4+ {[%clk 0:02:19.7]} 19. cxd4 {[%clk 0:02:16.4]}
19... Rfc8 {[%clk 0:02:18.5]} 20. Rac1 {[%clk 0:02:16.3]} 20... Rc4 {[%clk
0:02:17.6]} 21. Rxc4 {[%clk 0:02:13.1]} 21... dxc4 {[%clk 0:02:18.5]} 22. Kf2
{[%clk 0:02:12.2]} 22... b5 {[%clk 0:02:13.4]} 23. Ke3 {[%clk 0:02:10.6]} 23...
Kf6 {[%clk 0:02:13]} 24. Kd2 {[%clk 0:02:08.2]} 24... Ke7 {[%clk 0:02:03.8]} 25.
Kc3 {[%clk 0:02:07.1]} 25... Kd6 {[%clk 0:02:03.9]} 26. Re1 {[%clk 0:02:00.5]}
26... f6 {[%clk 0:01:54.5]} 27. a4 {[%clk 0:01:57.6]} 27... a6 {[%clk
0:01:49.1]} 28. Ra1 {[%clk 0:01:54.4]} 28... Rb8 {[%clk 0:01:27.1]} 29. axb5
{[%clk 0:01:52.1]} 29... axb5 {[%clk 0:01:28]} 30. Ra7 {[%clk 0:01:50.6]} 30...
Kd5 {[%clk 0:01:23.3]} 31. Rd7+ {[%clk 0:01:48.9]} 31... Ke4 {[%clk 0:01:23.2]}
32. Rxh7 {[%clk 0:01:32.2]} 32... Kxf4 {[%clk 0:01:16.8]} 33. Re7 {[%clk
0:01:30.2]} 33... e5 {[%clk 0:01:16.8]} 34. g3+ {[%clk 0:01:22]} 34... Ke4
{[%clk 0:01:13.9]} 35. dxe5 {[%clk 0:01:08]} 35... fxe5 {[%clk 0:01:13.6]} 36.
Kb4 {[%clk 0:01:07.9]} 36... Rh8 {[%clk 0:01:06.4]} 37. h4 {[%clk 0:01:05.1]}
37... Rg8 {[%clk 0:01:06.4]} 38. h5 {[%clk 0:00:50.9]} 38... Rxg3 {[%clk
0:01:05.4]} 39. h6 {[%clk 0:00:51.5]} 39... Rb3+ {[%clk 0:01:04.1]} 40. Kc5
{[%clk 0:00:49.2]} 40... Rxb2 {[%clk 0:01:04.6]} 41. Kd6 {[%clk 0:00:45.2]}
41... Rh2 {[%clk 0:01:03.4]} 42. Rxe5+ {[%clk 0:00:45.2]} 42... Kd4 {[%clk
0:01:02]} 43. Rd5+ {[%clk 0:00:44.9]} 43... Kc3 {[%clk 0:01:01.8]} 44. Rxb5
{[%clk 0:00:45.3]} 44... Rxh6+ {[%clk 0:00:56.2]} 45. Ke5 {[%clk 0:00:45]} 45...
Rh4 {[%clk 0:00:53.6]} 46. Rb8 {[%clk 0:00:37]} 46... Kc2 {[%clk 0:00:53.1]} 47.
Kxf5 {[%clk 0:00:33.8]} 47... c3 {[%clk 0:00:53.1]} 48. Ke5 {[%clk 0:00:33.7]}
48... Kd2 {[%clk 0:00:51.7]} 49. Rd8+ {[%clk 0:00:32.9]} 49... Kc1 {[%clk
0:00:51.7]} 50. Rc8 {[%clk 0:00:32.4]} 50... c2 {[%clk 0:00:52.1]} 51. Rc7
{[%clk 0:00:32.3]} 51... Kb2 {[%clk 0:00:51.5]} 52. Rb7+ {[%clk 0:00:32.5]}
52... Kc3 {[%clk 0:00:50.8]} 53. Kd5 {[%clk 0:00:29.3]} 53... c1=Q {[%clk
0:00:49.1]} 54. Rc7+ {[%clk 0:00:29.6]} 54... Kd2 {[%clk 0:00:49.3]} 55. Rxc1
{[%clk 0:00:30.5]} 55... Kxc1 {[%clk 0:00:50.2]} 0-1

[Event "Late-Titled-Tuesday-Blitz-August-29-2023"]
[Site "Chess.com"]
[Date "2023.08.29"]
[Round "5"]
[White "Jahonas"]
[Black "Cipy77"]
[Result "1-0"]
[WhiteElo "2451"]
[BlackElo "2540"]
[TimeControl "180+1"]
[EndTime "14:54:27 PDT"]
[Termination "Jahonas won by resignation"]

1. d4 {[%clk 0:03:00.9]} 1... d5 {[%clk 0:02:58.4]} 2. Nf3 {[%clk 0:02:59.7]}
2... Nf6 {[%clk 0:02:58.3]} 3. g3 {[%clk 0:02:59.4]} 3... c5 {[%clk 0:02:57.4]}
4. Bg2 {[%clk 0:02:59.3]} 4... Nc6 {[%clk 0:02:57.4]} 5. c3 {[%clk 0:02:59.1]}
5... Bg4 {[%clk 0:02:54.9]} 6. O-O {[%clk 0:02:57.9]} 6... e6 {[%clk 0:02:53.6]}
7. Nbd2 {[%clk 0:02:56.3]} 7... cxd4 {[%clk 0:02:52.8]} 8. Nxd4 {[%clk
0:02:55.6]} 8... Bd6 {[%clk 0:02:49.3]} 9. b3 {[%clk 0:02:52]} 9... O-O {[%clk
0:02:48.6]} 10. h3 {[%clk 0:02:47.4]} 10... Bh5 {[%clk 0:02:47.9]} 11. Bb2
{[%clk 0:02:44.7]} 11... Rc8 {[%clk 0:02:47]} 12. Rc1 {[%clk 0:02:43.7]} 12...
Qe7 {[%clk 0:02:47.2]} 13. N2f3 {[%clk 0:02:39.7]} 13... Bg6 {[%clk 0:02:44.8]}
14. Nb5 {[%clk 0:02:32.8]} 14... Bb8 {[%clk 0:02:43.3]} 15. Ba3 {[%clk
0:02:30.7]} 15... Qd7 {[%clk 0:02:41]} 16. Bxf8 {[%clk 0:02:23.3]} 16... Rxf8
{[%clk 0:02:41.9]} 17. c4 {[%clk 0:02:16]} 17... a6 {[%clk 0:02:37.2]} 18. cxd5
{[%clk 0:02:11.3]} 18... exd5 {[%clk 0:02:26]} 19. Nbd4 {[%clk 0:02:10.3]} 19...
Ne4 {[%clk 0:02:22]} 20. Nxc6 {[%clk 0:02:06]} 20... bxc6 {[%clk 0:02:22.9]} 21.
Nh4 {[%clk 0:02:04.2]} 21... Qe6 {[%clk 0:02:10.4]} 22. Nxg6 {[%clk 0:02:03.3]}
22... fxg6 {[%clk 0:02:08.4]} 23. Bxe4 {[%clk 0:02:01.2]} 23... dxe4 {[%clk
0:02:06.8]} 24. Qc2 {[%clk 0:01:53.8]} 24... Qxh3 {[%clk 0:02:03.5]} 25. Qxe4
{[%clk 0:01:52.2]} 25... c5 {[%clk 0:01:43.9]} 26. Qg2 {[%clk 0:01:38.4]} 26...
Qh5 {[%clk 0:01:42.1]} 27. e3 {[%clk 0:01:32.7]} 27... Rd8 {[%clk 0:01:20.6]}
28. g4 {[%clk 0:01:08.3]} 28... Qe5 {[%clk 0:01:18.3]} 29. Rfd1 {[%clk
0:01:05.1]} 29... Rxd1+ {[%clk 0:00:58]} 30. Rxd1 {[%clk 0:01:04.8]} 30... Kf8
{[%clk 0:00:58.5]} 31. Qf3+ {[%clk 0:01:01.1]} 31... Ke7 {[%clk 0:00:58.2]} 32.
Rd5 {[%clk 0:00:54.3]} 32... Qh2+ {[%clk 0:00:55.2]} 33. Kf1 {[%clk 0:00:54.2]}
33... Qc7 {[%clk 0:00:36]} 34. Qe4+ {[%clk 0:00:52.8]} 34... Kf7 {[%clk
0:00:36.2]} 35. Qc4 {[%clk 0:00:43.7]} 35... Ke8 {[%clk 0:00:34.8]} 36. Rxc5
{[%clk 0:00:42.7]} 36... Qd6 {[%clk 0:00:34.7]} 37. Rc8+ {[%clk 0:00:39.7]}
37... Kd7 {[%clk 0:00:35]} 38. Rc5 {[%clk 0:00:34.9]} 38... Ke8 {[%clk
0:00:30.8]} 39. Qe4+ {[%clk 0:00:34]} 39... Kf8 {[%clk 0:00:27.2]} 40. Qf4+
{[%clk 0:00:31.8]} 40... Qxf4 {[%clk 0:00:26.6]} 41. exf4 {[%clk 0:00:32.7]}
41... Bxf4 {[%clk 0:00:26.8]} 42. Rc6 {[%clk 0:00:32.5]} 42... a5 {[%clk
0:00:27]} 43. a3 {[%clk 0:00:32.2]} 43... Bc1 {[%clk 0:00:25.9]} 44. b4 {[%clk
0:00:31.7]} 44... Bxa3 {[%clk 0:00:23.8]} 45. bxa5 {[%clk 0:00:31.9]} 45... Ke7
{[%clk 0:00:23.1]} 46. a6 {[%clk 0:00:32.1]} 46... Kd7 {[%clk 0:00:23.7]} 47. a7
{[%clk 0:00:32.4]} 1-0

[Event "Late-Titled-Tuesday-Blitz-August-29-2023"]
[Site "Chess.com"]
[Date "2023.08.29"]
[Round "5"]
[White "Fore_Man"]
[Black "TheMagician"]
[Result "1-0"]
[WhiteElo "2307"]
[BlackElo "2151"]
[TimeControl "180+1"]
[EndTime "14:54:27 PDT"]
[Termination "Fore_Man won on time"]

1. e4 {[%clk 0:03:00.9]} 1... e5 {[%clk 0:02:58.1]} 2. f4 {[%clk 0:03:00]} 2...
d5 {[%clk 0:02:56.8]} 3. exd5 {[%clk 0:02:59.6]} 3... e4 {[%clk 0:02:57.1]} 4.
g3 {[%clk 0:02:59]} 4... Nf6 {[%clk 0:02:56.2]} 5. Nc3 {[%clk 0:02:59.2]} 5...
Bc5 {[%clk 0:02:54.4]} 6. Be2 {[%clk 0:02:56.4]} 6... c6 {[%clk 0:02:41.1]} 7.
d4 {[%clk 0:02:56.3]} 7... exd3 {[%clk 0:02:38.8]} 8. Qxd3 {[%clk 0:02:56.7]}
8... cxd5 {[%clk 0:02:36.6]} 9. Nf3 {[%clk 0:02:56.8]} 9... O-O {[%clk 0:02:33]}
10. Be3 {[%clk 0:02:54.1]} 10... Bxe3 {[%clk 0:02:31]} 11. Qxe3 {[%clk 0:02:55]}
11... Re8 {[%clk 0:02:29.8]} 12. Qd2 {[%clk 0:02:50.6]} 12... Bg4 {[%clk
0:02:08.6]} 13. O-O-O {[%clk 0:02:49]} 13... Nc6 {[%clk 0:02:08.6]} 14. h3
{[%clk 0:02:44.9]} 14... Bxf3 {[%clk 0:01:41.5]} 15. Bxf3 {[%clk 0:02:45.8]}
15... d4 {[%clk 0:01:32.5]} 16. Nb5 {[%clk 0:02:38.1]} 16... Ne4 {[%clk
0:01:24.1]} 17. Bxe4 {[%clk 0:02:32.8]} 17... Rxe4 {[%clk 0:01:23.5]} 18. Qd3
{[%clk 0:02:29.8]} 18... Qe7 {[%clk 0:01:10.2]} 19. Qa3 {[%clk 0:02:11.6]} 19...
Qxa3 {[%clk 0:00:58.7]} 20. Nxa3 {[%clk 0:02:12.5]} 20... Re3 {[%clk 0:00:58.1]}
21. Rhg1 {[%clk 0:02:12.5]} 21... Rc8 {[%clk 0:00:56.1]} 22. Kb1 {[%clk
0:02:09.8]} 22... h5 {[%clk 0:00:55.3]} 23. Nb5 {[%clk 0:02:07.3]} 23... h4
{[%clk 0:00:54.3]} 24. Nd6 {[%clk 0:02:00.4]} 24... Rc7 {[%clk 0:00:34.2]} 25.
Nf5 {[%clk 0:02:00.8]} 25... Re2 {[%clk 0:00:33.6]} 26. gxh4 {[%clk 0:01:53.2]}
26... f6 {[%clk 0:00:26.5]} 27. Ng3 {[%clk 0:01:50.3]} 27... Rh2 {[%clk
0:00:22.1]} 28. Nh5 {[%clk 0:01:46.9]} 28... Kh7 {[%clk 0:00:21.4]} 29. a3
{[%clk 0:01:31]} 29... Ne7 {[%clk 0:00:18.1]} 30. Rc1 {[%clk 0:01:29.4]} 30...
Nf5 {[%clk 0:00:17.4]} 31. Ng3 {[%clk 0:01:25.2]} 31... Nxh4 {[%clk 0:00:15.1]}
32. Ne4 {[%clk 0:01:16.8]} 32... Re2 {[%clk 0:00:08.8]} 33. Rg4 {[%clk
0:01:11.6]} 33... Nf5 {[%clk 0:00:07.8]} 34. Ng3 {[%clk 0:00:57.4]} 34... Nxg3
{[%clk 0:00:07.1]} 35. Rxg3 {[%clk 0:00:58.3]} 35... Re4 {[%clk 0:00:05.5]} 36.
Rf3 {[%clk 0:00:58.5]} 36... g6 {[%clk 0:00:04.5]} 37. Rf2 {[%clk 0:00:58.6]}
37... Rce7 {[%clk 0:00:04]} 38. Rd1 {[%clk 0:00:57.6]} 38... Re1 {[%clk
0:00:04.1]} 39. Kc1 {[%clk 0:00:57.7]} 39... Rxd1+ {[%clk 0:00:03.4]} 40. Kxd1
{[%clk 0:00:58.6]} 40... g5 {[%clk 0:00:02.8]} 41. fxg5 {[%clk 0:00:58.4]} 41...
fxg5 {[%clk 0:00:03.1]} 42. Kd2 {[%clk 0:00:59]} 42... Re3 {[%clk 0:00:02.8]}
43. Rf7+ {[%clk 0:00:57.5]} 43... Kg6 {[%clk 0:00:02.9]} 44. Rxb7 {[%clk
0:00:58.4]} 44... Rxh3 {[%clk 0:00:02.5]} 45. Rd7 {[%clk 0:00:59.1]} 1-0

[Event "Late-Titled-Tuesday-Blitz-August-29-2023"]
[Site "Chess.com"]
[Date "2023.08.29"]
[Round "5"]
[White "KNVB"]
[Black "mistrzemi"]
[Result "1-0"]
[WhiteElo "2811"]
[BlackElo "2363"]
[TimeControl "180+1"]
[EndTime "14:54:29 PDT"]
[Termination "KNVB won on time"]

1. d4 {[%clk 0:03:00.9]} 1... Nf6 {[%clk 0:02:53.1]} 2. Bf4 {[%clk 0:02:59]}
2... d5 {[%clk 0:02:52.3]} 3. e3 {[%clk 0:02:59.3]} 3... e6 {[%clk 0:02:52.5]}
4. Nf3 {[%clk 0:02:59.2]} 4... Bd6 {[%clk 0:02:52.7]} 5. Nbd2 {[%clk 0:02:59.1]}
5... O-O {[%clk 0:02:52.7]} 6. Bd3 {[%clk 0:02:59.3]} 6... c5 {[%clk 0:02:53.1]}
7. c3 {[%clk 0:02:59.4]} 7... Nc6 {[%clk 0:02:53.6]} 8. Bg3 {[%clk 0:02:59.3]}
8... Qe7 {[%clk 0:02:53.6]} 9. Ne5 {[%clk 0:02:56.8]} 9... Nd7 {[%clk
0:02:52.8]} 10. Nxd7 {[%clk 0:02:56.8]} 10... Qxd7 {[%clk 0:02:53.7]} 11. Bxd6
{[%clk 0:02:55.8]} 11... Qxd6 {[%clk 0:02:54.1]} 12. f4 {[%clk 0:02:56.4]} 12...
cxd4 {[%clk 0:02:47.5]} 13. cxd4 {[%clk 0:02:57.3]} 13... Bd7 {[%clk 0:02:32.8]}
14. a3 {[%clk 0:02:56.8]} 14... Rac8 {[%clk 0:02:23.4]} 15. O-O {[%clk
0:02:56.3]} 15... f5 {[%clk 0:01:55.2]} 16. Qe2 {[%clk 0:02:50.8]} 16... Na5
{[%clk 0:01:51.7]} 17. Rfc1 {[%clk 0:02:50.5]} 17... Rxc1+ {[%clk 0:01:46.3]}
18. Rxc1 {[%clk 0:02:51.4]} 18... Rc8 {[%clk 0:01:46.3]} 19. Qd1 {[%clk
0:02:49.6]} 19... Rxc1 {[%clk 0:01:43.1]} 20. Qxc1 {[%clk 0:02:50.5]} 20... Qc6
{[%clk 0:01:35.8]} 21. Qc5 {[%clk 0:02:48.4]} 21... b6 {[%clk 0:00:59.1]} 22.
Qe7 {[%clk 0:02:15.8]} 22... Qc7 {[%clk 0:00:59.2]} 23. Nf3 {[%clk 0:01:57.1]}
23... Nc6 {[%clk 0:00:53.9]} 24. Qh4 {[%clk 0:01:57.7]} 24... h6 {[%clk
0:00:47.1]} 25. h3 {[%clk 0:01:48.3]} 25... Qd8 {[%clk 0:00:20.6]} 26. Qe1
{[%clk 0:01:41.3]} 26... Be8 {[%clk 0:00:16.8]} 27. g4 {[%clk 0:01:40.1]} 27...
g6 {[%clk 0:00:14.3]} 28. Kh2 {[%clk 0:01:35.7]} 28... Qd6 {[%clk 0:00:13.4]}
29. Kg2 {[%clk 0:01:23.3]} 29... Kg7 {[%clk 0:00:11.7]} 30. Qg3 {[%clk
0:01:19.7]} 30... Kh7 {[%clk 0:00:09]} 31. h4 {[%clk 0:01:07.4]} 31... Qf8
{[%clk 0:00:03.8]} 32. h5 {[%clk 0:01:03.3]} 32... gxh5 {[%clk 0:00:04.1]} 33.
gxf5 {[%clk 0:01:02.4]} 33... exf5 {[%clk 0:00:04.6]} 34. Nh4 {[%clk 0:00:33.2]}
34... Ne7 {[%clk 0:00:04.6]} 35. Qh3 {[%clk 0:00:33.8]} 35... Qg7+ {[%clk
0:00:04.4]} 36. Kf2 {[%clk 0:00:34.5]} 36... Qg4 {[%clk 0:00:04.8]} 37. Qxg4
{[%clk 0:00:34.8]} 37... hxg4 {[%clk 0:00:04.3]} 38. Nxf5 {[%clk 0:00:35.6]}
38... Bg6 {[%clk 0:00:01.7]} 39. Nxe7 {[%clk 0:00:36]} 39... Bxd3 {[%clk
0:00:02]} 40. Nxd5 {[%clk 0:00:36.9]} 40... Be4 {[%clk 0:00:02.2]} 41. Nf6+
{[%clk 0:00:37.4]} 1-0

[Event "Late-Titled-Tuesday-Blitz-August-29-2023"]
[Site "Chess.com"]
[Date "2023.08.29"]
[Round "5"]
[White "Goryachkina"]
[Black "YEIKO2017"]
[Result "1-0"]
[WhiteElo "2637"]
[BlackElo "2469"]
[TimeControl "180+1"]
[EndTime "14:54:29 PDT"]
[Termination "Goryachkina won by resignation"]

1. e4 {[%clk 0:02:57.2]} 1... c5 {[%clk 0:02:59.1]} 2. Nf3 {[%clk 0:02:56.8]}
2... Nf6 {[%clk 0:02:59.2]} 3. e5 {[%clk 0:02:54.7]} 3... Nd5 {[%clk 0:02:58.5]}
4. Nc3 {[%clk 0:02:53.9]} 4... Nxc3 {[%clk 0:02:58.2]} 5. dxc3 {[%clk
0:02:54.2]} 5... Nc6 {[%clk 0:02:58.8]} 6. Bf4 {[%clk 0:02:53.1]} 6... Qb6
{[%clk 0:02:58.8]} 7. b3 {[%clk 0:02:52.4]} 7... Qc7 {[%clk 0:02:58.8]} 8. Bd3
{[%clk 0:02:48.1]} 8... e6 {[%clk 0:02:56.8]} 9. Qd2 {[%clk 0:02:42.9]} 9... a6
{[%clk 0:02:56]} 10. O-O {[%clk 0:02:31.4]} 10... h6 {[%clk 0:02:55]} 11. Rae1
{[%clk 0:02:16.6]} 11... b6 {[%clk 0:02:53.5]} 12. Be4 {[%clk 0:02:12.6]} 12...
Bb7 {[%clk 0:02:53.7]} 13. Bg3 {[%clk 0:02:07.9]} 13... O-O-O {[%clk 0:02:50.8]}
14. Qf4 {[%clk 0:02:01]} 14... f5 {[%clk 0:02:36.6]} 15. exf6 {[%clk 0:01:27.1]}
15... Qxf4 {[%clk 0:02:36.1]} 16. Bxf4 {[%clk 0:01:15.6]} 16... gxf6 {[%clk
0:02:34.8]} 17. c4 {[%clk 0:01:15.1]} 17... f5 {[%clk 0:02:19.8]} 18. Bxc6
{[%clk 0:01:14.2]} 18... Bxc6 {[%clk 0:02:05.4]} 19. Ne5 {[%clk 0:01:14.3]}
19... Be4 {[%clk 0:02:01.5]} 20. f3 {[%clk 0:01:12.7]} 20... Bb7 {[%clk
0:01:52.8]} 21. Nf7 {[%clk 0:01:12.7]} 21... Bg7 {[%clk 0:01:48.3]} 22. Nd6+
{[%clk 0:00:58.9]} 22... Kb8 {[%clk 0:01:48]} 23. Nxf5+ {[%clk 0:00:55.7]} 23...
e5 {[%clk 0:01:48.3]} 24. Rxe5 {[%clk 0:00:50.7]} 24... Bxe5 {[%clk 0:01:40.7]}
25. Bxe5+ {[%clk 0:00:51.6]} 25... Ka7 {[%clk 0:01:41]} 26. Bxh8 {[%clk
0:00:51.9]} 26... Rxh8 {[%clk 0:01:41.7]} 27. Rd1 {[%clk 0:00:52]} 27... Rh7
{[%clk 0:01:32.6]} 28. Kf2 {[%clk 0:00:51.5]} 28... b5 {[%clk 0:01:31.9]} 29.
Rd6 {[%clk 0:00:45.8]} 29... bxc4 {[%clk 0:01:28.6]} 30. bxc4 {[%clk 0:00:45.9]}
30... h5 {[%clk 0:01:29]} 31. h4 {[%clk 0:00:45.3]} 31... Rf7 {[%clk 0:01:27.3]}
32. Ne3 {[%clk 0:00:44.2]} 32... Kb8 {[%clk 0:01:24]} 33. Rh6 {[%clk 0:00:41.3]}
33... Kc7 {[%clk 0:01:17.1]} 34. Rxh5 {[%clk 0:00:41.4]} 34... d6 {[%clk
0:01:17.8]} 35. Rg5 {[%clk 0:00:40.9]} 35... Rf4 {[%clk 0:01:09.9]} 36. h5
{[%clk 0:00:40.6]} 36... Rh4 {[%clk 0:01:10.5]} 37. g4 {[%clk 0:00:33.6]} 37...
Rh3 {[%clk 0:01:03.2]} 38. Rf5 {[%clk 0:00:32.2]} 38... Kd7 {[%clk 0:01:00.4]}
39. Rf7+ {[%clk 0:00:31.8]} 39... Kc8 {[%clk 0:01:00.2]} 40. Rf6 {[%clk
0:00:30.4]} 40... Kd7 {[%clk 0:00:59.7]} 41. h6 {[%clk 0:00:29.6]} 41... Ke7
{[%clk 0:00:59.5]} 42. g5 {[%clk 0:00:29.8]} 42... Rh5 {[%clk 0:00:50.8]} 43.
Nf5+ {[%clk 0:00:28.5]} 43... Kd8 {[%clk 0:00:46]} 44. Rf8+ {[%clk 0:00:24.2]}
44... Kc7 {[%clk 0:00:44.2]} 45. Rf7+ {[%clk 0:00:24.6]} 45... Kb6 {[%clk
0:00:44.5]} 46. h7 {[%clk 0:00:24.3]} 1-0